bitfinex/quotes_ETHUSD_20230116
["timestamp","ask_amount","ask_price","bid_price","bid_amount"]
[1673832156792,14.841335,1565.6,1565.2,0.08696791]
[1673832157004,9.38672,1565.8,1565.2,0.08696791]
[1673832157275,0.4792,1565.7,1565.2,6.47584791]
[1673832157422,0.4792,1565.8,1565.2,6.47584791]
[1673832157633,0.4792,1565.8,1565.2,0.08696791]
[1673832157634,7.88661,1565.8,1565.2,0.08696791]
[1673832157894,6.38661,1565.8,1565.2,0.08696791]
[1673832158135,6.38661,1565.8,1565.2,1.3734927]
[1673832158310,23.917,1566.0,1565.3,0.23]
[1673832158311,24.3961,1566.0,1565.3,0.23]
[1673832158649,30.30285,1566.0,1565.3,6.61838]
[1673832158861,30.30285,1566.0,1565.2,0.08696791]
[1673832158862,36.6887,1566.0,1565.2,0.08696791]
[1673832159016,1.5,1565.8,1565.2,0.08696791]
[1673832159329,0.45,1565.8,1565.2,0.08696791]
[1673832159539,9.38626,1565.9,1565.2,12.86478791]
[1673832160222,9.38626,1565.9,1565.3,7.88835]
[1673832160440,0.0152473,1566.1,1565.4,6.17517601]
[1673832160650,0.0152473,1566.1,1565.6,6.38728]
[1673832160819,0.0152473,1566.1,1565.5,9.38761]
[1673832161016,1.5152473,1566.1,1565.6,0.938761]
[1673832161226,7.9006673,1566.1,1565.4,8.56994]
[1673832161475,7.9006673,1566.1,1565.4,0.23]
[1673832161476,14.2860873,1566.1,1565.4,0.23]
[1673832161640,14.2860873,1566.1,1565.2,16.63737791]
[1673832161851,14.2860873,1566.1,1565.2,2.03496791]
[1673832162113,6.3865,1565.9,1565.2,0.08696791]
[1673832162292,9.86501,1566.0,1565.2,14.1512247]
[1673832162499,3.0,1566.0,1565.2,13.70267078]
[1673832162707,6.4006673,1566.1,1565.5,6.38757]
[1673832162708,0.0152473,1566.1,1565.5,6.38757]
[1673832162918,0.0152473,1566.1,1565.5,12.7753]
[1673832163135,14.2859073,1566.1,1565.3,9.38829]
[1673832163362,12.77254,1565.9,1565.3,11.16974655]
[1673832163598,12.77254,1565.9,1565.3,4.78145655]
[1673832163751,7.88683,1565.8,1565.3,1.78145655]
[1673832163962,14.75286,1565.8,1565.2,0.08696791]
[1673832165229,13.25286,1565.8,1565.2,6.47591791]
[1673832165636,9.4005373,1566.1,1565.3,1.948]
[1673832165896,9.4005373,1566.1,1565.4,0.1948]
[1673832165897,12.77234,1565.9,1565.4,0.1948]
[1673832166111,1.5,1565.8,1565.2,5.71993745]
[1673832166302,19.16154,1565.7,1565.1,4.945]
[1673832166478,19.16154,1565.7,1565.2,3.0]
[1673832166898,21.227694,1565.7,1565.1,1.945]
[1673832167158,1.5,1565.6,1564.8,11.42894292]
[1673832167334,6.38737,1565.6,1564.9,9.38986]
[1673832167838,6.38656,1565.8,1565.1,1.952]
[1673832168062,6.38597,1566.0,1565.3,1.956]
[1673832168275,6.38597,1566.0,1565.3,8.34428]
[1673832168750,6.38576,1566.0,1565.3,8.34428]
[1673832168942,13.25062,1566.0,1565.4,0.23]
[1673832169122,12.77152,1566.0,1565.4,0.23]
[1673832169333,12.77152,1566.0,1565.4,1.15206192]
[1673832169548,12.77152,1566.0,1565.4,0.23]
[1673832169787,1.5,1565.9,1565.4,0.23]
[1673832169997,12.7732,1565.8,1565.2,0.1952]
[1673832170392,0.4792,1565.7,1565.1,1.956]
[1673832170745,19.16295,1565.6,1564.8,0.09062292]
[1673832170955,1.9793,1565.5,1564.8,0.09062292]
[1673832171167,6.38847,1565.4,1564.8,0.09062292]
[1673832171488,12.77694,1565.4,1564.8,0.09062292]
[1673832171637,14.891374,1565.4,1564.8,0.09062292]
[1673832171843,1.5,1565.3,1564.8,0.09062292]
[1673832172263,12.77832,1565.2,1564.8,0.09062292]
[1673832172730,6.38916,1565.2,1564.8,0.09062292]
[1673832172897,7.88946,1565.1,1564.8,0.09062292]
[1673832173105,14.27892,1565.1,1564.8,0.09062292]
[1673832173377,16.345728,1565.1,1564.8,1e-08]
[1673832173545,6.39018,1564.9,1564.8,1e-08]
[1673832173945,12.78036,1564.9,1564.8,1e-08]
[1673832174474,6.39018,1564.9,1564.8,1e-08]
[1673832174734,6.86968,1564.9,1564.8,1e-08]
[1673832174924,12.78036,1564.9,1564.8,1e-08]
[1673832175106,14.256331,1564.9,1564.8,1e-08]
[1673832175476,0.00199999,1564.7,1564.4,0.09062292]
[1673832175698,6.3914,1564.6,1564.4,0.09062292]
[1673832176000,6.39329999,1564.7,1564.4,0.09062292]
[1673832176154,12.78464999,1564.7,1564.4,0.09062292]
[1673832176364,13.26414999,1564.7,1564.4,0.09062292]
[1673832176618,6.87279999,1564.7,1564.4,0.09062292]
[1673832176809,6.39329999,1564.7,1564.4,0.09062292]
[1673832177428,0.00199999,1564.7,1564.4,0.09062292]
[1673832177645,0.00199999,1564.7,1564.4,2.03862292]
[1673832177894,0.00199999,1564.7,1564.5,1.93386229]
[1673832178204,0.00199999,1564.7,1564.6,8.3334]
[1673832178359,0.00199999,1564.7,1564.6,1.942]
[1673832178779,0.00199999,1564.7,1564.5,0.43386229]
[1673832178989,0.00199999,1564.7,1564.4,2.02862292]
[1673832178990,0.00199999,1564.7,1564.4,0.09062292]
[1673832179829,14.28399999,1564.7,1564.4,0.09062292]
[1673832180367,12.78362,1564.5,1564.4,0.09062292]
[1673832181737,14.28362,1564.5,1564.4,0.09062292]
[1673832181942,12.78362,1564.5,1564.4,0.09062292]
[1673832182681,16.840301,1564.5,1564.4,0.09062292]
[1673832183133,19.840301,1564.5,1564.4,0.00062292]
[1673832183345,1.5,1564.4,1564.0,0.09937717]
[1673832183556,25.57284,1564.3,1564.0,0.09937717]
[1673832183766,26.05254,1564.3,1564.0,0.09937717]
[1673832183984,3.01547727,1564.2,1564.0,0.09937717]
[1673832184330,19.18035,1564.1,1564.0,0.09937717]
[1673832184525,22.18035,1564.1,1564.0,0.09937717]
[1673832185108,28.5738,1564.1,1564.0,0.09937717]
[1673832185318,22.18035,1564.1,1563.4,1.956]
[1673832185592,22.18035,1564.1,1563.0,6.39794]
[1673832185593,3.45489852,1563.3,1562.0,14.54091433]
[1673832185738,12.79726,1562.9,1562.0,13.61161433]
[1673832186076,12.80244,1562.2,1562.0,0.1676919]
[1673832186270,6.40088,1562.3,1562.0,0.1676919]
[1673832186617,6.3993,1562.7,1562.0,2.1126919]
[1673832186828,6.39861,1562.9,1562.2,1.956]
[1673832187004,6.39861,1562.9,1562.1,0.21126919]
[1673832187005,12.79767,1562.8,1562.1,0.21126919]
[1673832187217,12.79767,1562.8,1562.1,1.5]
[1673832187428,12.79767,1562.8,1562.0,0.1676919]
[1673832188053,12.79767,1562.8,1562.0,0.1176919]
[1673832188737,14.29767,1562.8,1562.0,0.1176919]
[1673832188893,3.0,1562.7,1562.0,0.1176919]
[1673832189104,0.4802,1562.7,1562.0,0.1176919]
[1673832189331,12.80064,1562.5,1562.0,0.1176919]
[1673832190208,19.2027,1562.3,1562.0,0.1176919]
[1673832190426,0.82638379,1561.9,1561.8,0.0084275]
[1673832190580,0.23538379,1561.9,1561.8,0.0084275]
[1673832190784,13.63128379,1561.9,1561.8,0.0084275]
[1673832191726,1.5,1561.8,1561.6,0.00402685]
[1673832191989,12.80818,1561.5,1560.4,1.0969919]
[1673832192161,12.81146,1561.1,1560.4,1.0969919]
[1673832192382,19.21719,1561.1,1560.4,1.0969919]
[1673832192838,6.40573,1561.1,1560.6,1.956]
[1673832192996,6.40573,1561.1,1560.4,4.6899919]
[1673832193205,12.81146,1561.1,1560.4,4.6899919]
[1673832193416,12.81146,1561.1,1560.4,0.9969919]
[1673832193632,1.5,1560.9,1559.8,2.59833918]
[1673832193882,1.5,1560.9,1559.8,1.952]
[1673832193883,6.40791,1560.6,1559.8,1.952]
[1673832194069,6.40791,1560.6,1559.9,0.1952]
[1673832194465,6.30243744,1560.6,1559.9,0.1952]
[1673832194678,1.5,1560.5,1559.9,0.1952]
[1673832194923,6.40774,1560.7,1559.9,0.1952]
[1673832195238,1.5,1561.0,1560.0,1.756]
[1673832195446,6.55662,1560.9,1560.1,0.1756]
[1673832195657,6.55662,1560.9,1559.8,3.675]
[1673832195658,1.5,1560.8,1559.8,3.675]
[1673832195938,19.22619,1560.4,1559.6,1.945]
[1673832196149,19.22619,1560.4,1559.3,1.723]
[1673832196150,4.03784116,1560.3,1559.3,1.723]
[1673832196371,12.8205,1560.0,1559.2,0.70684]
[1673832196583,1.956,1559.7,1559.2,0.70684]
[1673832196954,19.2363,1559.6,1559.2,0.70684]
[1673832197106,0.4811,1559.5,1559.2,0.60684]
[1673832197331,12.82544,1559.4,1559.2,0.60684]
[1673832197534,1.82052,1559.0,1558.8,1.0969919]
[1673832197883,8.23522,1559.0,1558.8,1.0969919]
[1673832198096,15.13122,1559.0,1558.8,1.0969919]
[1673832198403,1.82052,1559.0,1558.8,1.0469919]
[1673832198825,8.23495,1559.0,1558.8,1.0469919]
[1673832199142,8.71625,1559.0,1558.8,1.0469919]
[1673832199352,6.41347,1559.3,1558.8,1.15169109]
[1673832199567,6.89467,1559.3,1558.8,1.15169109]
[1673832199779,0.4811,1559.7,1558.9,1.5]
[1673832199929,6.41072,1559.9,1558.9,1.9813]
[1673832200134,6.41076,1559.9,1559.1,1.956]
[1673832200503,8.84776,1559.9,1558.9,1.9813]
[1673832200719,0.481,1559.9,1559.0,0.87633918]
[1673832200929,6.40943,1560.3,1559.0,0.87633918]
[1673832200930,0.4809,1560.2,1559.2,0.64633918]
[1673832201245,6.4084,1560.5,1559.6,1.956]
[1673832201449,6.40768,1560.7,1559.9,1.952]
[1673832201779,6.40865,1560.4,1559.7,1.12743918]
[1673832202017,2.4369,1560.3,1559.3,3.0]
[1673832202135,25.641,1560.0,1558.8,1.15169109]
[1673832202343,1.956,1559.6,1558.8,1.0469919]
[1673832202604,1.5,1559.3,1558.8,1.0469919]
[1673832202918,6.41356,1559.2,1558.8,1.0469919]
[1673832203288,6.89446,1559.3,1558.8,1.0469919]
[1673832203546,0.4811,1559.6,1558.9,1.5]
[1673832203760,6.41025,1560.0,1559.0,0.15]
[1673832203761,8.84725,1560.0,1559.0,0.15]
[1673832203948,8.84725,1560.0,1558.9,3.9193]
[1673832203949,6.41123,1559.8,1559.1,0.4813]
[1673832204153,12.82303,1559.7,1558.8,1.0469919]
[1673832204494,16.84029418,1559.7,1558.8,1.0469919]
[1673832204704,7.19088678,1559.6,1558.8,1.0469919]
[1673832204927,19.23864,1559.4,1558.8,1.0469919]
[1673832205131,0.7112,1559.3,1558.8,1.0469919]
[1673832205438,12.82738,1559.2,1558.8,1.0469919]
[1673832205853,1.4989983,1558.7,1558.5,0.04491622]
[1673832206180,1.4989983,1558.7,1558.5,1e-08]
[1673832206346,9.41223,1559.6,1558.7,1.5]
[1673832206544,28.97428,1559.8,1558.8,0.4814]
[1673832206755,0.4809,1560.2,1559.1,1.956]
[1673832207003,6.40961,1560.2,1559.2,0.4812]
[1673832207218,6.40961,1560.2,1559.2,3.4812]
[1673832207219,0.481,1560.1,1559.2,3.4812]
[1673832207403,1.811022,1560.1,1559.3,0.34812]
[1673832207614,1.981,1560.1,1559.2,11.39468]
[1673832207854,0.4809,1560.3,1559.3,8.59907]
[1673832208014,0.4809,1560.3,1559.4,9.89359]
[1673832208224,6.88864,1560.6,1559.6,1.938]
[1673832208490,0.4807,1560.8,1560.0,8.36216]
[1673832208702,22.5631,1561.0,1560.3,6.40899]
[1673832208871,0.4807,1561.1,1560.4,3.23]
[1673832209070,6.40506,1561.3,1560.5,0.4808]
[1673832209283,0.9616,1560.4,1560.3,9.40882]
[1673832209560,10.36337152,1561.1,1560.1,9.39235518]
[1673832209732,1.03633715,1561.0,1560.2,3.0]
[1673832209940,6.40661,1560.9,1560.2,3.0]
[1673832210111,6.40661,1560.9,1560.1,3.836216]
[1673832210331,12.78375152,1560.9,1559.8,4.643]
[1673832210590,1.5,1560.7,1559.8,1.643]
[1673832210908,1.956,1560.4,1559.5,7.9745]
[1673832211060,6.40918,1560.3,1559.3,6.41307]
[1673832211268,0.4809,1560.3,1559.3,8.36507]
[1673832211586,6.88807,1560.8,1559.6,1.5]
[1673832211831,21.81623715,1561.0,1559.8,8.34891]
[1673832212047,28.22246715,1561.0,1559.8,11.01171945]
[1673832212275,20.7799,1561.0,1560.2,6.40941]
[1673832212426,0.4807,1560.9,1560.2,1.5]
[1673832212635,6.40579,1561.1,1560.2,6.40935]
[1673832212901,6.40579,1561.1,1560.3,3.0]
[1673832213055,0.4806,1561.2,1560.4,1.5]
[1673832213266,0.07242433,1561.4,1560.6,6.40759]
[1673832213530,0.07242433,1561.4,1560.7,3.0]
[1673832213694,0.07242433,1561.4,1560.7,9.40729]
[1673832213913,0.07242433,1561.4,1560.7,3.0]
[1673832214263,6.47698433,1561.4,1560.7,3.0]
[1673832214424,6.47698433,1561.4,1560.7,0.3]
[1673832214640,0.07242433,1561.4,1560.7,0.3]
[1673832215071,0.07242433,1561.4,1560.8,0.23]
[1673832215281,0.07242433,1561.4,1561.0,1.938]
[1673832215537,0.07242433,1561.4,1560.9,1.5]
[1673832215861,0.07242433,1561.4,1561.0,0.15]
[1673832216058,0.07242433,1561.4,1561.1,8.36169]
[1673832216363,0.07242433,1561.4,1561.0,3.0]
[1673832216537,0.07242433,1561.4,1560.8,1.5]
[1673832216898,0.07242433,1561.4,1560.9,0.23]
[1673832217066,0.07242433,1561.4,1560.9,1.113693]
[1673832217283,0.07242433,1561.4,1560.9,3.0]
[1673832218145,6.47694433,1561.4,1560.7,0.3]
[1673832218372,0.4806,1561.3,1560.5,3.606]
[1673832218577,6.47694433,1561.4,1560.5,3.606]
[1673832218578,6.95754433,1561.4,1560.5,10.01416]
[1673832218733,0.55302433,1561.4,1560.5,16.42236]
[1673832218936,0.07242433,1561.4,1560.7,1.948]
[1673832219153,0.02242433,1561.4,1561.0,1.956]
[1673832219407,0.02242433,1561.4,1561.1,6.83128]
[1673832219736,0.02242433,1561.4,1561.1,0.4256]
[1673832220041,0.02242433,1561.4,1561.1,6.60132]
[1673832220250,0.02242433,1561.4,1561.3,6.40491]
[1673832220427,0.02242433,1561.4,1561.3,8.13491]
[1673832220634,0.02242433,1561.4,1561.3,13.107494]
[1673832220847,0.03767163,1561.4,1561.3,19.512404]
[1673832221041,0.23538379,1561.9,1561.4,1.5]
[1673832221264,0.23538379,1561.9,1561.3,2.202584]
[1673832221462,0.23538379,1561.9,1561.4,1.952]
[1673832221793,0.23538379,1561.9,1561.5,0.23]
[1673832222005,0.23538379,1561.9,1561.5,6.63402]
[1673832222335,0.23538379,1561.9,1561.6,3.90654875]
[1673832222512,0.23538379,1561.9,1561.6,15.44362875]
[1673832222717,0.23538379,1561.9,1561.6,1.948]
[1673832222962,0.23538379,1561.9,1561.3,8.04671]
[1673832222963,0.23538379,1561.9,1561.3,1.642]
[1673832223310,0.23538379,1561.9,1561.4,8.1344]
[1673832223462,0.23538379,1561.9,1561.4,14.5389]
[1673832223828,0.23538379,1561.9,1561.4,8.5904]
[1673832223981,0.23538379,1561.9,1561.4,16.494409]
[1673832224193,0.23538379,1561.9,1561.5,3.0]
[1673832224457,0.23538379,1561.9,1561.6,6.4036]
[1673832224698,0.23538379,1561.9,1561.7,3.0]
[1673832225193,0.23538379,1561.9,1561.8,1.942]
[1673832225347,3.38826092,1561.7,1561.6,3.0]
[1673832225556,3.38826092,1561.7,1561.6,10.40416152]
[1673832225806,3.38826092,1561.7,1561.6,17.41216672]
[1673832226715,3.38826092,1561.7,1561.6,19.14216672]
[1673832227359,0.23538379,1561.9,1561.6,23.08351811]
[1673832227576,0.23538379,1561.9,1561.7,8.66570862]
[1673832227786,0.23538379,1561.9,1561.8,20.07515086]
[1673832227987,0.07484146,1562.2,1561.8,23.90982606]
[1673832228219,0.07484146,1562.2,1562.0,19.20612]
[1673832228416,0.07484146,1562.2,1562.1,14.53326]
[1673832228646,0.07484146,1562.2,1562.1,17.53326]
[1673832228853,0.07484146,1562.2,1562.1,18.33903096]
[1673832229062,0.07484146,1562.2,1562.1,10.20740096]
[1673832229273,0.07484146,1562.2,1562.1,3.0]
[1673832229529,0.07484146,1562.2,1562.1,6.40163]
[1673832229677,0.07484146,1562.2,1561.9,6.40231]
[1673832230098,0.07484146,1562.2,1562.0,3.0]
[1673832230360,0.07484146,1562.2,1562.0,15.80389]
[1673832230579,0.07484146,1562.2,1562.1,14.383649]
[1673832231148,0.07484146,1562.2,1562.1,17.383649]
[1673832231421,0.07484146,1562.2,1562.1,18.883649]
[1673832231722,0.00084146,1562.2,1562.1,19.7183242]
[1673832231935,0.00084146,1562.2,1562.1,23.65350769]
[1673832232094,0.08462517,1563.0,1562.4,19.20072]
[1673832232331,0.08462517,1563.0,1562.7,6.39909]
[1673832232694,0.08462517,1563.0,1562.5,9.39973]
[1673832233066,0.08462517,1563.0,1562.5,15.79973]
[1673832233300,0.08462517,1563.0,1562.6,1.5]
[1673832233540,0.08462517,1563.0,1562.7,12.79825]
[1673832233744,0.08462517,1563.0,1562.7,12.53513433]
[1673832234444,0.08462517,1563.0,1562.5,3.0]
[1673832234445,6.48257517,1563.0,1562.5,3.0]
[1673832234777,0.08462517,1563.0,1562.5,15.79989]
[1673832235193,0.08462517,1563.0,1562.6,1.73]
[1673832235395,0.08462517,1563.0,1562.7,12.79818]
[1673832235787,0.08462517,1563.0,1562.5,3.0]
[1673832236164,6.48265517,1563.0,1562.5,3.0]
[1673832236470,14.80852669,1563.0,1562.5,3.0]
[1673832236690,15.28862669,1563.0,1562.3,9.40072]
[1673832237000,15.28862669,1563.0,1562.3,15.80127]
[1673832237321,2.54026411,1562.2,1562.0,6.40185]
[1673832237846,2.54026411,1562.2,1561.9,12.80445]
[1673832237999,2.54026411,1562.2,1561.9,14.084895]
[1673832238212,2.54026411,1562.2,1561.9,7.682895]
[1673832238475,2.54026411,1562.2,1562.1,12.80326]
[1673832238647,2.54026411,1562.2,1562.1,15.80326]
[1673832239504,2.54026411,1562.2,1561.2,19.9644]
[1673832239731,2.54026411,1562.2,1561.6,7.43667952]
[1673832240133,2.54026411,1562.2,1561.6,1.03306952]
[1673832240308,16.84288411,1562.2,1561.4,6.4045]
[1673832240678,16.84288411,1562.2,1561.2,14.71548]
[1673832240679,6.40249,1561.9,1561.2,6.40508]
[1673832240836,0.4804,1561.8,1561.1,6.40552]
[1673832241042,6.40301,1561.8,1560.9,6.52457954]
[1673832241290,2.620801,1561.7,1560.9,9.31769549]
[1673832241518,0.4804,1561.8,1560.9,9.31769549]
[1673832241704,2.54026411,1562.2,1561.0,10.74973394]
[1673832241884,2.56579361,1562.2,1561.3,19.21401]
[1673832242100,2.56579361,1562.2,1561.5,1.5]
[1673832242322,2.56579361,1562.2,1561.6,6.40335]
[1673832242551,2.56579361,1562.2,1561.6,7.78341739]
[1673832242951,2.56579361,1562.2,1561.7,3.0]
[1673832243186,2.56579361,1562.2,1561.6,4.38006739]
[1673832243392,12.9089014,1562.2,1561.3,6.40467]
[1673832243606,4.42172424,1562.1,1561.4,3.0]
[1673832243817,6.84432242,1562.0,1561.1,6.40571]
[1673832244151,7.90265,1561.9,1561.1,6.40571]
[1673832244304,11.84302131,1561.9,1560.9,0.11827954]
[1673832244513,6.40378,1561.6,1560.9,0.11827954]
[1673832244987,16.74643,1561.6,1560.9,0.11827954]
[1673832245202,10.059623,1561.5,1560.9,0.11827954]
[1673832245355,2.155143,1561.5,1560.9,6.52480954]
[1673832245568,0.4805,1561.5,1560.9,12.93136954]
[1673832245776,6.40369,1561.6,1560.9,0.11827954]
[1673832246213,1.5,1561.5,1560.9,3.0]
[1673832246405,1.5,1561.5,1560.9,3.95252395]
[1673832246621,1.5,1561.5,1560.9,3.0]
[1673832247039,14.3082,1561.5,1560.9,3.0]
[1673832247246,12.8082,1561.5,1560.8,3.11827954]
[1673832247506,6.40409,1561.5,1560.8,9.52514954]
[1673832247929,0.4805,1561.7,1560.8,19.88385348]
[1673832248117,9.73424716,1561.9,1561.0,6.40581]
[1673832248118,8.38342,1561.8,1561.0,6.40581]
[1673832248340,8.38342,1561.8,1561.1,3.0]
[1673832248665,12.8066,1561.7,1561.1,3.0]
[1673832248824,6.40327,1561.7,1561.0,3.0]
[1673832249029,1.5,1561.6,1561.0,9.40582]
[1673832249267,7.881939,1561.7,1561.0,3.0]
[1673832249455,1.41656585,1561.9,1561.0,3.0]
[1673832249456,0.94864461,1561.9,1561.0,12.81202]
[1673832249687,0.94864461,1562.0,1561.1,3.23]
[1673832250032,36.39723035,1562.2,1561.3,19.21389]
[1673832250033,2.56579361,1562.2,1561.3,19.21389]
[1673832250247,2.56579361,1562.2,1561.6,19.21057]
[1673832250413,2.56579361,1562.2,1561.6,12.80704]
[1673832250628,3.51443822,1562.2,1561.7,3.0]
[1673832251030,0.94864461,1562.0,1561.1,6.40565]
[1673832251237,7.83183461,1561.9,1561.1,6.40565]
[1673832251445,4.81044918,1561.8,1560.8,6.52505954]
[1673832251674,6.40372,1561.6,1560.8,0.11827954]
[1673832251917,12.80744,1561.6,1560.8,6.52519954]
[1673832252091,14.30744,1561.6,1560.8,6.52519954]
[1673832252645,2.53742022,1561.5,1560.8,0.11827954]
[1673832252853,0.4805,1561.5,1560.8,13.58478449]
[1673832253185,0.94864461,1561.7,1560.8,13.53478449]
[1673832253354,23.65601046,1561.9,1560.8,17.56574905]
[1673832253549,23.65601046,1561.9,1560.9,11.43363976]
[1673832253550,3.33130132,1561.9,1560.9,11.43363976]
[1673832253760,2.36521046,1562.1,1561.3,1.563]
[1673832253966,2.53681824,1562.1,1561.6,6.40364]
[1673832254223,2.53681824,1562.1,1561.6,4.70959519]
[1673832254657,3.46443822,1562.2,1561.7,3.0]
[1673832254849,2.56579361,1562.2,1561.8,12.80548]
[1673832255028,2.56579361,1562.2,1561.9,3.0]
[1673832255386,2.56579361,1562.2,1561.8,10.28005441]
[1673832255578,2.56579361,1562.2,1561.8,16.68291441]
[1673832255979,2.56579361,1562.2,1561.9,1.73]
[1673832256331,2.56579361,1562.2,1562.0,19.20612]
[1673832256551,2.56579361,1562.2,1562.1,10.05419495]
[1673832256708,2.56579361,1562.2,1562.1,16.45582495]
[1673832256908,2.56579361,1562.2,1562.1,18.18582495]
[1673832257336,3.30644162,1562.7,1562.1,16.45582495]
[1673832257558,1.41656585,1562.8,1562.1,18.63350015]
[1673832257811,1.41656585,1562.8,1562.3,12.80113]
[1673832258021,1.41656585,1562.8,1562.4,3.0]
[1673832258180,3.00401882,1562.8,1562.4,3.0]
[1673832259014,1.58745297,1562.8,1562.4,15.80073]
[1673832259226,1.58743901,1562.9,1562.5,1.5]
[1673832259492,1.58743901,1562.9,1562.6,0.15]
[1673832259719,1.58743901,1562.9,1562.6,6.54931]
[1673832259937,1.58743901,1562.9,1562.7,3.0]
[1673832260137,1.58743901,1562.9,1562.3,6.40069]
[1673832260138,2.539686,1562.6,1562.3,6.40069]
[1673832260287,2.539686,1562.6,1562.4,16.03079]
[1673832260652,2.539686,1562.6,1562.5,3.87725441]
[1673832260825,2.539686,1562.6,1562.5,10.50725441]
[1673832261179,2.539686,1562.6,1562.5,18.40725441]
[1673832261565,2.539686,1562.6,1562.5,19.96725441]
[1673832261909,1.58743901,1562.9,1562.7,19.19754]
[1673832262092,1.58743901,1562.9,1562.8,18.25310495]
[1673832262454,1.58743901,1562.9,1562.8,3.0]
[1673832262653,1.58743901,1562.9,1562.8,16.02754]
[1673832263012,0.08743901,1562.9,1562.8,9.39877]
[1673832263265,3.4535284,1563.3,1562.8,9.39877]
[1673832263451,3.4535284,1563.3,1562.8,15.79754]
[1673832263697,3.4535284,1563.3,1562.9,1.809754]
[1673832263856,3.4535284,1563.3,1562.9,7.978054]
[1673832264065,3.4535284,1563.3,1563.0,3.0]
[1673832264320,3.4535284,1563.3,1562.9,3.0]
[1673832264548,3.4035284,1563.3,1562.9,3.0]
[1673832264697,3.4035284,1563.3,1562.9,9.39825]
[1673832265430,3.4035284,1563.3,1562.9,15.79661]
[1673832265960,3.4035284,1563.3,1562.9,17.29661]
[1673832266284,3.4035284,1563.3,1562.9,9.39825]
[1673832266491,3.4035284,1563.3,1562.9,3.0]
[1673832266702,9.8002484,1563.3,1562.8,3.0]
[1673832266913,10.78027324,1563.3,1562.7,9.3991]
[1673832267167,10.2802484,1563.3,1562.7,10.8991]
[1673832267379,10.2802484,1563.3,1562.7,9.3991]
[1673832267702,3.4035284,1563.3,1563.1,1.573]
[1673832267855,3.4035284,1563.3,1563.2,19.19139]
[1673832268065,3.4035284,1563.3,1563.2,20.69139]
[1673832268275,3.4853756,1563.3,1563.2,23.69139]
[1673832268538,3.4853756,1563.3,1563.2,9.39713]
[1673832269765,3.4853756,1563.3,1563.2,3.0]
[1673832270024,3.4853756,1563.3,1562.9,6.39829]
[1673832270216,3.4853756,1563.3,1562.8,12.79687]
[1673832270433,3.4853756,1563.3,1563.0,12.79582]
[1673832270586,3.4853756,1563.3,1563.1,3.0]
[1673832270962,3.4853756,1563.3,1563.1,9.39751]
[1673832271266,3.4853756,1563.3,1563.1,15.79505]
[1673832271842,3.4853756,1563.3,1563.2,1.5]
[1673832272053,3.4853756,1563.3,1563.2,15.68775634]
[1673832272297,3.4853756,1563.3,1563.2,18.68775634]
[1673832272490,3.4853756,1563.3,1563.2,17.18775634]
[1673832272956,3.4853756,1563.3,1563.2,18.68775634]
[1673832273107,3.4853756,1563.3,1563.2,18.91775634]
[1673832273315,0.09615111,1563.6,1563.3,1.279687]
[1673832273699,0.09615111,1563.6,1563.5,7.9559]
[1673832273842,0.09615111,1563.6,1563.5,15.7918]
[1673832274166,0.09615111,1563.6,1563.5,16.0218]
[1673832274367,0.09615111,1563.6,1563.5,17.5948]
[1673832274579,0.09615111,1563.6,1563.5,18.98829634]
[1673832274827,0.09615111,1563.6,1563.5,20.48829634]
[1673832274999,0.00081272,1563.7,1563.5,24.50956424]
[1673832275210,0.00081272,1563.7,1563.6,7.2479538]
[1673832275416,0.00081272,1563.7,1563.6,20.0389338]
[1673832275686,0.00139206,1563.8,1563.6,17.300667]
[1673832275901,0.00139206,1563.8,1563.6,3.0]
[1673832276050,0.00139206,1563.8,1563.5,6.39588]
[1673832276421,0.00139206,1563.8,1563.6,3.0]
[1673832276633,0.00139206,1563.8,1563.6,15.79085]
[1673832276802,0.00139206,1563.8,1563.6,1.30798454]
[1673832277010,0.00139206,1563.8,1563.4,7.89623]
[1673832277223,0.00139206,1563.8,1563.5,0.789623]
[1673832277459,0.00139206,1563.8,1563.3,6.39634]
[1673832277649,0.00139206,1563.8,1562.8,7.97167]
[1673832277650,0.4799,1563.7,1562.8,7.97167]
[1673832277997,0.4799,1563.7,1562.9,12.79661]
[1673832278366,6.87517,1563.7,1562.9,6.39825]
[1673832278577,0.4799,1563.7,1562.9,12.79661]
[1673832278856,0.4799,1563.7,1563.0,2.779661]
[1673832279043,0.4799,1563.7,1563.2,6.39709]
[1673832279257,0.4799,1563.7,1563.1,6.39744]
[1673832279471,0.4799,1563.7,1563.2,3.0]
[1673832279780,6.39615206,1563.8,1563.2,15.79402]
[1673832279781,0.00139206,1563.8,1563.2,15.79402]
[1673832280104,0.00139206,1563.8,1563.2,3.0]
[1673832280262,0.4799,1563.7,1563.0,6.3976]
[1673832280630,0.00139206,1563.8,1563.2,12.79418]
[1673832280780,0.00139206,1563.8,1563.4,19.18833]
[1673832280987,0.00139206,1563.8,1563.4,20.75133]
[1673832281234,0.00139206,1563.8,1563.6,14.36398]
[1673832281448,0.00139206,1563.8,1563.7,16.02016]
[1673832281664,0.00139206,1563.8,1563.7,17.52016]
[1673832281886,0.00139206,1563.8,1563.7,16.02016]
[1673832282726,0.00139206,1563.8,1563.7,18.1248352]
[1673832283105,0.09670289,1564.1,1563.8,14.28934]
[1673832283355,0.09670289,1564.1,1564.0,19.18158]
[1673832283730,0.09670289,1564.1,1564.0,22.18158]
[1673832284095,0.09670289,1564.1,1563.9,3.0]
[1673832284260,0.09670289,1564.1,1563.7,9.39488]
[1673832284694,0.09670289,1564.1,1563.7,3.0]
[1673832285089,0.09670289,1564.1,1563.7,10.334357]
[1673832285346,0.09670289,1564.1,1563.7,16.729437]
[1673832285535,0.09670289,1564.1,1563.7,3.0]
[1673832286139,0.09670289,1564.1,1563.7,9.94345295]
[1673832286355,0.09670289,1564.1,1563.7,8.44345295]
[1673832286726,0.09670289,1564.1,1563.7,14.83853295]
[1673832287193,0.09670289,1564.1,1563.8,0.23]